fUSD/lending_fUSD_20251127
["ID","MTS","AMOUNT","RATE_DAILY","PERIOD"]
[394958683,1764208237593,-500.0,0.00015104,2]
[394958685,1764208237605,-269.17041229,0.00015104,2]
[394958686,1764208237615,-300.0,0.00015111,2]
[394958687,1764208237624,-2260.462,0.00015112,2]
[394958688,1764208237633,-159.892,0.00015112,2]
[394958689,1764208237643,-500.0,0.00015112,2]
[394958690,1764208237842,-509.22860967,0.00015112,2]
[394958691,1764208237861,-500.0,0.00015112,2]
[394958692,1764208237870,-507.31505474,0.00015112,2]
[394958693,1764208237878,-500.0,0.00015112,2]
[394958694,1764208237886,-504.72140363,0.00015112,2]
[394958695,1764208237895,-1000.0,0.00015113,2]
[394958696,1764208237904,-166.66,0.00015117,2]
[394958697,1764208237913,-500.76527544,0.00015173,2]
[394958698,1764208237922,-502.19789832,0.00015173,2]
[394958699,1764208237931,-500.0,0.00015173,2]
[394958700,1764208237941,-173.00824401,0.00015173,2]
[394958701,1764208237950,-500.90172292,0.00015173,2]
[394958702,1764208237959,-241.85,0.00015173,2]
[394958703,1764208237969,-180.13,0.00015203,2]
[394958704,1764208237978,-13783.14028357,0.00015247,2]
[394958705,1764208237989,-3009.92502313,0.00015247,2]
[394958712,1764208239795,-170.66126783,0.00014913,2]
[394958713,1764208239805,-831.30205097,0.00015247,2]
[394958714,1764208239814,-5301.69,0.00015292,2]
[394958715,1764208239823,-146.75274005,0.00015309,2]
[394958716,1764208239854,-775.78207657,0.00015309,2]
[394958721,1764208245651,-4707.28518338,0.00015309,2]
[394958722,1764208245661,-2585.11492097,0.00015334,2]
[394958723,1764208245671,-1083.36503194,0.00015334,2]
[394958724,1764208245683,-448.44489931,0.00015334,2]
[394958725,1764208245693,-158.91337327,0.00015338,2]
[394958726,1764208245702,-666.0,0.00015338,2]
[394958727,1764208245711,-247.43723916,0.00015338,2]
[394958728,1764208245721,-864.30386928,0.0001534,2]
[394958729,1764208245730,-166.66,0.00015356,2]
[394958730,1764208245739,-241.85,0.00015447,2]
[394958731,1764208245748,-166.66,0.00015616,2]
[394958732,1764208245758,-1000.0,0.00015621,2]
[394958733,1764208245768,-511.77453451,0.00015621,2]
[394958734,1764208245777,-500.24841669,0.00015621,2]
[394958735,1764208245786,-857.68475052,0.00015655,2]
[394958736,1764208245801,-1727.43017045,0.00015655,2]
[394958737,1764208245811,-1531.80993125,0.00015655,2]
[394958738,1764208245821,-1000.0,0.00015721,2]
[394958739,1764208245830,-241.85,0.00015721,2]
[394958740,1764208245839,-728.1476855,0.00015766,2]
[394958741,1764208245850,-136.15618378,0.00015766,2]
[394958742,1764208245859,-168.0,0.000158,2]
[394958743,1764208245869,-168.0,0.00015834,2]
[394958744,1764208245879,-666.0,0.00015886,2]
[394958745,1764208245888,-170.66126783,0.00015909,2]
[394958746,1764208245897,-1712.02542112,0.00015975,2]
[394958747,1764208245908,-318.00863237,0.00015975,2]
[394958748,1764208299293,-1808.37,0.00014713,2]
[394958749,1764208299322,-159.892,0.00014713,2]
[394958750,1764208299349,-190.17457431,0.00015012,2]
[394958751,1764208299377,-572.03237802,0.00015012,2]
[394958752,1764208299412,-500.0,0.00015012,2]
[394958753,1764208299445,-500.0,0.00015012,2]
[394958754,1764208299477,-500.0,0.00015012,2]
[394958755,1764208299508,-485.48949758,0.00015012,2]
[394958756,1764208299543,-68.09310018,0.00015012,2]
[394958757,1764208299919,-431.90689982,0.00015012,2]
[394958758,1764208305154,-10000.01,0.00015013,2]
[394958759,1764208398302,500.0,0.00024999,120]
[394958761,1764208717734,9218.03035,0.00014704,2]
[394959475,1764208810286,167.26,7.33e-05,2]
[394959489,1764208810589,167.26,7.716e-05,2]
[394959501,1764208810875,167.26,8.101e-05,2]
[394959511,1764208811090,167.26,8.487e-05,2]
[394959521,1764208811313,167.26,8.873e-05,2]
[394959531,1764208811529,167.26,9.259e-05,2]
[394959541,1764208811730,167.26,9.645e-05,2]
[394959550,1764208811942,167.26,0.0001003,2]
[394959560,1764208812143,167.26,0.00010416,2]
[394959569,1764208812362,167.26,0.00010802,2]
[394959575,1764208812573,167.26,0.00011188,2]
[394959586,1764208812808,167.26,0.00011573,2]
[394959595,1764208813008,167.26,0.00011959,2]
[394959606,1764208813236,167.26,0.00012345,2]
[394959615,1764208813427,167.26,0.00012731,2]
[394959625,1764208813671,167.26,0.00013117,2]
[394959636,1764208813900,167.26,0.00013502,2]
[394959646,1764208814112,167.26,0.00013888,2]
[394959657,1764208814371,167.26,0.00014274,2]
[394959666,1764208814595,167.26,0.0001466,2]
[394959795,1764208819293,1966.12,0.00025,120]
[394960145,1764208998417,571.520069,0.00024999,120]
[394960146,1764208999624,155.82,0.00014591,2]
[394960147,1764209012141,1909.7,0.00014551,2]
[394960863,1764209135543,200.0,0.00014526,2]
[394960896,1764209358876,1500.0,0.00014442,2]
[394960897,1764209406367,500.0,0.00014355,2]
[394960903,1764209431466,-999.0,0.00014777,3]
[394960904,1764209431476,-198.90697055,0.00014777,2]
[394960905,1764209431485,-1907.21,0.00014778,2]
[394960906,1764209431494,-165.48272165,0.00014813,2]
[394960907,1764209431503,-540.1899183,0.00014813,2]
[394960908,1764209431513,-1200.0,0.0001491,2]
[394960909,1764209431522,-150.0,0.00014911,2]
[394960910,1764209431531,-300.0,0.00014911,2]
[394960911,1764209431542,-300.0,0.00014911,2]
[394960912,1764209431552,-1200.0,0.00014912,2]
[394960913,1764209431562,-500.0,0.00014912,2]
[394960914,1764209431571,-260.87773778,0.00014912,2]
[394960915,1764209431580,-500.0,0.00014912,2]
[394960916,1764209431590,-371.35949903,0.00014912,2]
[394960917,1764209431599,-175.54650976,0.00014912,2]
[394960918,1764209431608,-500.0,0.00014912,2]
[394960919,1764209431617,-500.0,0.00014912,2]
[394960920,1764209431626,-500.0,0.00014912,2]
[394960921,1764209431635,-500.0,0.00014912,2]
[394960922,1764209431644,-500.0,0.00014912,2]
[394960923,1764209431654,-500.0,0.00014912,2]
[394960924,1764209431663,-500.0,0.00014912,2]
[394960925,1764209431673,-500.0,0.00014912,2]
[394960926,1764209431682,-500.0,0.00014912,2]
[394960927,1764209431693,-500.0,0.00014912,2]
[394960928,1764209431703,-500.0,0.00014912,2]
[394960929,1764209431712,-500.0,0.00014912,2]
[394960930,1764209431721,-564.40116519,0.00014912,2]
[394960931,1764209431731,-500.0,0.00014912,2]
[394960933,1764209431740,-625.90676423,0.00014912,2]
[394960935,1764209431749,-332.85616183,0.00014912,2]
[394960937,1764209431758,-500.0,0.00014912,2]
[394960939,1764209431767,-500.0,0.00014912,2]
[394960941,1764209431776,-419.48567363,0.00014912,2]
[394960943,1764209431785,-367.94284876,0.00014912,2]
[394960945,1764209431797,-132.05715124,0.00014912,2]
[394960947,1764209431807,-500.0,0.00014912,2]
[394960949,1764209431816,-500.0,0.00014912,2]
[394960951,1764209431825,-172.94284876,0.00014912,2]
[394960953,1764209431836,-327.05715124,0.00014912,2]
[394960955,1764209431844,-56.72682844,0.00014912,2]
[394960957,1764209431855,-443.27317156,0.00014912,2]
[394960959,1764209431864,-500.0,0.00014912,2]
[394960961,1764209431878,-203.61203155,0.00014912,2]
[394960963,1764209431889,-296.38796845,0.00014912,2]
[394960965,1764209431899,-500.0,0.00014912,2]
[394960967,1764209431908,-500.0,0.00014912,2]
[394960969,1764209431918,-500.0,0.00014912,2]
[394960972,1764209431927,-18.67052467,0.00014912,2]
[394960974,1764209431940,-481.32947533,0.00014912,2]
[394960976,1764209431950,-104.05928191,0.00014912,2]
[394960978,1764209431961,-271.414428,0.00014912,2]
[394960979,1764209431971,-124.52629009,0.00014912,2]
[394960980,1764209431982,-500.0,0.00014912,2]
[394960982,1764209431991,-191.29771339,0.00014912,2]
[394960984,1764209432002,-308.70228661,0.00014912,2]
[394960986,1764209432011,-500.0,0.00014912,2]
[394960988,1764209432020,-500.0,0.00014912,2]
[394960990,1764209432029,-300.81896273,0.00014912,2]
[394960992,1764209432038,-500.0,0.00014912,2]
[394960993,1764209432047,-500.0,0.00014912,2]
[394960994,1764209432057,-500.0,0.00014912,2]
[394960995,1764209432065,-500.0,0.00014912,2]
[394960996,1764209432074,-500.0,0.00014912,2]
[394960997,1764209432083,-500.0,0.00014912,2]
[394960998,1764209432092,-500.0,0.00014912,2]
[394960999,1764209432101,-500.0,0.00014912,2]
[394961000,1764209432111,-500.0,0.00014912,2]
[394961001,1764209432119,-305.47983643,0.00014912,2]
[394961002,1764209432130,-194.52016357,0.00014912,2]
[394961003,1764209432139,-500.0,0.00014912,2]
[394961004,1764209432148,-500.0,0.00014912,2]
[394961005,1764209432158,-500.0,0.00014912,2]
[394961006,1764209432167,-500.0,0.00014912,2]
[394961007,1764209432175,-500.0,0.00014912,2]
[394961008,1764209432184,-500.0,0.00014912,2]
[394961009,1764209432194,-500.0,0.00014912,2]
[394961010,1764209432204,-500.0,0.00014912,2]
[394961011,1764209432212,-501.89270124,0.00014912,2]
[394961012,1764209432221,-500.0,0.00014912,2]
[394961013,1764209432229,-500.0,0.00014912,2]
[394961014,1764209432239,-500.0,0.00014912,2]
[394961015,1764209432247,-500.0,0.00014912,2]
[394961016,1764209432256,-500.0,0.00014912,2]
[394961017,1764209432265,-500.0,0.00014912,2]
[394961018,1764209432274,-500.0,0.00014912,2]
[394961019,1764209432283,-500.0,0.00014912,2]
[394961020,1764209432292,-483.18560205,0.00014912,2]
[394961021,1764209432301,-500.0,0.00014912,2]
[394961022,1764209432309,-500.0,0.00014912,2]
[394961023,1764209432319,-500.0,0.00014912,2]
[394961024,1764209432328,-499.99999999,0.00014912,2]
[394961025,1764209432337,-500.0,0.00014912,2]
[394961026,1764209432346,-500.0,0.00014912,2]
[394961027,1764209432356,-1792.20226516,0.00014913,2]
[394961028,1764209432365,-1072.26695192,0.00014913,2]
[394961029,1764209432374,-240623.44158556,0.00014913,2]
[394961030,1764209432387,-462.1300956,0.00014913,2]
[394961031,1764209432398,-1075.43,0.00014913,2]
[394961032,1764209432412,-73843.48184758,0.00014913,2]
[394961033,1764209432424,-92874.95872355,0.00014913,2]
[394961034,1764209432436,-466.139668,0.00014913,2]
[394961036,1764209437495,-2473.6530472,0.00014913,2]
[394961037,1764209437601,-11934.12736092,0.00014913,2]
[394961038,1764209437654,-660.02060821,0.00014913,2]
[394961049,1764209437859,-30535.84811941,0.00014913,2]
[394961051,1764209437872,-88727.81797807,0.00014913,2]
[394961065,1764209439964,-911.8054,0.00014913,2]
[394961066,1764209439974,-769.482,0.00014913,2]
[394961067,1764209439985,-20000.15629197,0.00014913,2]
[394961093,1764209443110,-6697.50952846,0.00014913,2]
[394961271,1764209445802,-384.48281505,0.00014913,2]
[394961273,1764209445813,-605.73784635,0.00014913,2]
[394961275,1764209445823,-23077.07648784,0.00014913,2]
[394961278,1764209445859,-163876.70059623,0.00014913,2]
[394961279,1764209445868,-2500.0,0.00014913,2]
[394961280,1764209445880,-500.0,0.00014973,2]
[394961281,1764209445889,-480.05847222,0.00014973,2]
[394961282,1764209445898,-500.0,0.00014973,2]
[394961283,1764209445907,-159.892,0.00015011,2]
[394961284,1764209445916,-1446.696,0.00015011,2]
[394961285,1764209445926,-296.35,0.00015012,2]
[394961286,1764209445935,-172.79,0.00015012,2]
[394961287,1764209445944,-291.70030611,0.00015013,2]
[394961288,1764209445955,-1000.0,0.00015013,2]
[394961289,1764209445964,-500.0,0.00015073,2]
[394961290,1764209445973,-365.77812876,0.00015083,2]
[394961291,1764209445982,-364.42168522,0.00015083,2]
[394961292,1764209445991,-171.399419,0.00015227,2]
[394961293,1764209446000,-164.99006444,0.00015227,2]
[394961294,1764209446009,-1072.26695187,0.00015245,2]
[394961295,1764209446019,-540.1899183,0.00015254,2]
[394961296,1764209446028,-296.35,0.00015286,2]
[394961297,1764209446037,-57565.5312212,0.00015288,2]
[394961298,1764209446046,-14559.4602655,0.00015288,2]
[394961299,1764209446055,-21721.26244804,0.00015288,2]
[394961311,1764209446348,412.24,0.00013699,2]
[394961322,1764209513888,-2500.0,0.00014913,2]
[394961323,1764209513921,-500.0,0.00014973,2]
[394961324,1764209524034,500.0,0.00014912,2]
[394961325,1764209524076,500.0,0.00014912,2]
[394961326,1764209524145,500.0,0.00014912,2]
[394961327,1764209524186,500.0,0.00014912,2]
[394961328,1764209524245,429.1634836,0.00014912,2]
[394961329,1764209541812,500.0,0.00014912,2]
[394961330,1764209561289,-236.0721,0.00015188,2]
[394961331,1764209561319,-300.0,0.00015287,2]
[394961332,1764209561349,-300.0,0.00015287,2]
[394961333,1764209561377,-180.65630714,0.00015287,2]
[394961334,1764209561404,-157.7206304,0.00015287,2]
[394961335,1764209561440,-500.0,0.00015287,2]
[394961336,1764209561472,-500.0,0.00015287,2]
[394961337,1764209561501,-500.0,0.00015287,2]
[394961338,1764209561531,-356.03330879,0.00015287,2]
[394961339,1764209564195,-3768.91147374,0.00015288,2]
[394961340,1764209567102,-10000.01,0.00015288,2]
[394961341,1764209567190,-10000.01,0.00015288,2]
[394961357,1764209963228,250.0,0.00014646,2]
[394961362,1764210008535,164.25,0.0001166,2]
[394961387,1764210332675,160.3,0.00019178,30]
[394961394,1764210453147,628.0,0.000154,5]
[394961408,1764210631669,-1780.0447419,0.00014851,2]
[394961410,1764210631679,-300.0,0.00014893,2]
[394961412,1764210631688,-300.0,0.00014893,2]
[394961415,1764210631697,-648.42775883,0.00014893,2]
[394961417,1764210631776,-551.57224117,0.00014893,2]
[394961418,1764210631786,-300.0,0.00014893,2]
[394961419,1764210631795,-300.0,0.00014893,2]
[394961420,1764210631804,-150.0,0.00014893,2]
[394961421,1764210631814,-131.04306073,0.00014894,2]
[394961422,1764210631887,-10497.25155771,0.00014894,2]
[394961423,1764210631898,-1412.90587241,0.00014894,2]
[394961424,1764210631909,-2948.65831542,0.00014894,2]
[394961434,1764210636829,9585.76,0.0001467,2]
[394961435,1764210636856,10000.01,0.0001467,2]
[394961436,1764210636884,10000.01,0.0001467,2]
[394961437,1764210636909,10000.01,0.0001467,2]
[394961438,1764210636932,10000.01,0.0001467,2]
[394961439,1764210636955,5992.55,0.0001467,2]
[394961442,1764210637660,-1165.29962059,0.00014894,2]
[394961443,1764210637714,-696.05560694,0.00014894,2]
[394961444,1764210637728,-1415.79120437,0.00014894,2]
[394961445,1764210637742,-281.55,0.00014894,2]
[394961446,1764210637755,-1319.6449995,0.00014894,2]
[394961447,1764210637769,-1665.8,0.00014894,2]
[394961448,1764210637782,-574.0,0.00014894,2]
[394961449,1764210637795,-1871.57821793,0.00014894,2]
[394961450,1764210637830,-3375.5170958,0.00014894,2]
[394961451,1764210637884,-13202.2847388,0.00014894,2]
[394961452,1764210637897,-1691.06524236,0.00014894,2]
[394961453,1764210637911,-2744.24144194,0.00014894,2]
[394961461,1764210639783,-886.55610604,0.00014894,2]
[394961462,1764210639797,-415.24921979,0.00014894,2]
[394961463,1764210639812,-6015.47723072,0.00014894,2]
[394961464,1764210639824,-2666.05555921,0.00014894,2]
[394961465,1764210639838,-1109.86639144,0.00014894,2]
[394961466,1764210639851,-6274.40990247,0.00014894,2]
[394961467,1764210639947,-148305.84352038,0.00014894,2]
[394961468,1764210640004,-2002.58108,0.00014894,2]
[394961469,1764210640017,-2501.29291,0.00014894,2]
[394961470,1764210640030,-414.17999991,0.00014894,2]
[394961471,1764210640043,-878.73,0.00014894,2]
[394961489,1764210644267,-913.74216,0.00014894,2]
[394961500,1764210645723,-3267.53827321,0.00014894,2]
[394961501,1764210645736,-411.65125314,0.00014894,2]
[394961502,1764210645749,-3057.5545,0.00014894,2]
[394961503,1764210645799,-433294.61090817,0.00014894,2]
[394961504,1764210645835,-102591.97401102,0.00014894,2]
[394961505,1764210645845,-405.14243876,0.00014951,2]
[394961506,1764210645856,-500.0,0.00014973,2]
[394961507,1764210645866,-500.0,0.00014973,2]
[394961508,1764210645877,-500.0,0.00014973,2]
[394961509,1764210645887,-514.40378329,0.00014973,2]
[394961510,1764210645898,-1200.0,0.00014992,2]
[394961511,1764210645909,-4992.6513113,0.00014994,2]
[394961512,1764210645921,-38158.44032825,0.00014994,2]
[394961513,1764210645934,-5015.70808765,0.00014994,2]
[394961514,1764210645946,-16210.3655855,0.00014994,2]
[394961515,1764210645957,-10919.5951991,0.00014994,2]
[394961516,1764210645967,-142826.14629755,0.00014994,2]
[394961517,1764210645980,-3974.43422412,0.00014994,2]
[394961518,1764210645992,-1912.97792903,0.00014994,2]
[394961519,1764210646013,-3143.78510363,0.00014994,2]
[394961520,1764210646025,-570.44,0.00014994,2]
[394961530,1764210821756,167.32,0.00014293,2]
[394961531,1764210849746,185.38,0.00014271,2]
[394961532,1764210900853,166.66,0.00013874,2]
[394961533,1764210901075,166.66,0.00014167,2]
[394961534,1764210901314,166.66,0.00014459,2]
[394961536,1764210961148,9314.65,0.00014213,2]
[394961537,1764210961170,10000.01,0.00014213,2]
[394961538,1764210961191,10000.01,0.00014213,2]
[394961539,1764210961212,3932.48,0.00014213,2]
[394961540,1764210965707,6631.0,0.00025,120]
[394961541,1764211010516,166.68,0.00014641,2]
[394961542,1764211052591,294.5,0.00025,120]
[394961543,1764211124250,612.61,0.00014204,2]
[394961544,1764211154395,3440.76,0.00014204,2]
[394961545,1764211186616,1000.0,0.00014204,2]
[394961546,1764211192926,171.90115651,0.00014335,2]
[394961548,1764211300390,3297.76,0.00014164,2]
[394961550,1764211515770,999.0,0.00014215,3]
[394961553,1764211710602,150.0,0.00014164,2]
[394961554,1764211723141,10000.01,0.00014164,2]
[394961555,1764211723164,30407.49252535,0.00014164,2]
[394961556,1764211723192,73504.86747465,0.00014164,2]
[394961557,1764211741041,194.23,7.082e-05,2]
[394961558,1764211741249,194.23,7.455e-05,2]
[394961559,1764211741468,194.23,7.827e-05,2]
[394961560,1764211741672,194.23,8.2e-05,2]
[394961561,1764211741879,194.23,8.573e-05,2]
[394961562,1764211742091,194.23,8.946e-05,2]
[394961563,1764211742285,194.23,9.318e-05,2]
[394961564,1764211742497,194.23,9.691e-05,2]
[394961565,1764211742893,194.23,0.00010064,2]
[394961566,1764211742982,194.23,0.00010437,2]
[394961567,1764211743201,194.23,0.00010809,2]
[394961568,1764211743442,194.23,0.00011182,2]
[394961569,1764211743645,194.23,0.00011555,2]
[394961570,1764211743859,194.23,0.00011928,2]
[394961571,1764211744081,194.23,0.000123,2]
[394961572,1764211744310,194.23,0.00012673,2]
[394961573,1764211744502,194.23,0.00013046,2]
[394961574,1764211744698,194.23,0.00013419,2]
[394961575,1764211744907,194.23,0.00013791,2]
[394961576,1764211745120,194.23,0.00014164,2]
[394961577,1764211748075,7608.729407,7.945e-05,2]
[394961578,1764211750643,-166.66,0.00014751,2]
[394961579,1764211750673,-1200.0,0.00014792,2]
[394961580,1764211750703,-300.0,0.00014793,2]
[394961581,1764211750731,-1200.0,0.00014793,2]
[394961582,1764211750764,-150.0,0.00014793,2]
[394961583,1764211750795,-300.0,0.00014793,2]
[394961584,1764211750825,-1000.0,0.00014794,2]
[394961585,1764211750852,-350.4164,0.00014794,2]
[394961586,1764211751032,-4083.9034,0.00014794,2]
[394961587,1764211753988,-477.4304,0.00014794,2]
[394961588,1764211754068,-10000.01,0.00014794,2]
[394961589,1764211754127,-4256.0422,0.00014794,2]
[394961590,1764211754155,-1487.9256,0.00014794,2]
[394961591,1764211754227,-2500.0,0.00014794,2]
[394961592,1764211754262,-1324.5361255,0.00014797,2]
[394961593,1764211754294,-748.89748129,0.00014797,2]
[394961594,1764211754359,-853.14278642,0.00014797,2]
[394961595,1764211754397,-199.68657714,0.00014797,2]
[394961596,1764211754430,-204.8,0.00014827,2]
[394961597,1764211754468,-200.0,0.0001484,2]
[394961598,1764211754501,-376.33799689,0.00014873,2]
[394961599,1764211754535,-500.0,0.00014873,2]
[394961600,1764211754568,-500.0,0.00014873,2]
[394961601,1764211754599,-1559.045,0.00014873,2]
[394961602,1764211754631,-162.798,0.00014873,2]
[394961603,1764211754662,-666.0,0.00014885,2]
[394961604,1764211754694,-151.0,0.00014891,2]
[394961605,1764211754726,-221.06622907,0.00014893,2]
[394961606,1764211754759,-255.8044316,0.00014893,2]
[394961607,1764211754823,-183.92264068,0.00014893,2]
[394961608,1764211754858,-500.0,0.00014893,2]
[394961609,1764211754895,-449.86623566,0.00014893,2]
[394961610,1764211754928,-500.0,0.00014893,2]
[394961611,1764211754959,-212.69030025,0.00014893,2]
[394961612,1764211754988,-500.0,0.00014893,2]
[394961613,1764211755231,-500.0,0.00014893,2]
[394961614,1764211755262,-500.0,0.00014893,2]
[394961615,1764211755293,-500.0,0.00014893,2]
[394961616,1764211755323,-500.0,0.00014893,2]
[394961617,1764211755352,-500.0,0.00014893,2]
[394961618,1764211755471,-500.0,0.00014893,2]
[394961619,1764211755501,-500.0,0.00014893,2]
[394961620,1764211755532,-270.18554204,0.00014893,2]
[394961621,1764211755563,-500.0,0.00014893,2]
[394961622,1764211755592,-500.0,0.00014893,2]
[394961623,1764211755622,-500.0,0.00014893,2]
[394961624,1764211755652,-500.0,0.00014893,2]
[394961625,1764211755678,-500.0,0.00014893,2]
[394961626,1764211755706,-500.0,0.00014893,2]
[394961627,1764211755733,-156.69183458,0.00014893,2]
[394961628,1764211755761,-526.51795043,0.00014893,2]
[394961629,1764211756341,-93.2193459,0.00014893,2]
[394961630,1764211756353,-228.26601918,0.00014893,2]
[394961631,1764211756373,-85.71915824,0.00014893,2]
[394961632,1764211756616,-480.99685526,0.00014893,2]
[394961633,1764211756647,-566.7160135,0.00014893,2]
[394961634,1764211756677,-566.7160135,0.00014893,2]
[394961635,1764211756707,-566.7160135,0.00014893,2]
[394961636,1764211756736,-566.7160135,0.00014893,2]
[394961637,1764211756765,-566.7160135,0.00014893,2]
[394961638,1764211756798,-566.7160135,0.00014893,2]
[394961639,1764211756829,-566.7160135,0.00014893,2]
[394961640,1764211756860,-537.27608698,0.00014893,2]
[394961641,1764211756945,-29.43992652,0.00014893,2]
[394961642,1764211756974,-566.7160135,0.00014893,2]
[394961643,1764211757006,-566.7160135,0.00014893,2]
[394961644,1764211757035,-566.7160135,0.00014893,2]
[394961645,1764211757065,-566.7160135,0.00014893,2]
[394961646,1764211757096,-566.7160135,0.00014893,2]
[394961647,1764211757127,-566.7160135,0.00014893,2]
[394961648,1764211757156,-566.7160135,0.00014893,2]
[394961649,1764211757186,-566.7160135,0.00014893,2]
[394961650,1764211757216,-306.95791746,0.00014893,2]
[394961651,1764211757287,-259.75809604,0.00014893,2]
[394961652,1764211757315,-566.7160135,0.00014893,2]
[394961653,1764211757344,-566.7160135,0.00014893,2]
[394961654,1764211757373,-566.7160135,0.00014893,2]
[394961655,1764211757497,-566.7160135,0.00014893,2]
[394961656,1764211757525,-566.7160135,0.00014893,2]
[394961657,1764211757554,-566.7160135,0.00014893,2]
[394961658,1764211757583,-566.7160135,0.00014893,2]
[394961659,1764211757612,-566.7160135,0.00014893,2]
[394961660,1764211757722,-566.7160135,0.00014893,2]
[394961661,1764211757751,-566.7160135,0.00014893,2]
[394961662,1764211757783,-566.7160135,0.00014893,2]
[394961663,1764211757813,-566.7160135,0.00014893,2]
[394961664,1764211757842,-566.7160135,0.00014893,2]
[394961665,1764211757872,-566.7160135,0.00014893,2]
[394961666,1764211757902,-566.7160135,0.00014893,2]
[394961667,1764211757931,-566.7160135,0.00014893,2]
[394961668,1764211757962,-365.8377705,0.00014893,2]
[394961669,1764211758053,-200.878243,0.00014893,2]
[394961670,1764211758083,-566.7160135,0.00014893,2]
[394961671,1764211758112,-566.7160135,0.00014893,2]
[394961672,1764211758141,-566.7160135,0.00014893,2]
[394961673,1764211758169,-566.7160135,0.00014893,2]
[394961674,1764211758198,-566.7160135,0.00014893,2]
[394961675,1764211758226,-566.7160135,0.00014893,2]
[394961676,1764211758255,-566.7160135,0.00014893,2]
[394961677,1764211758287,-566.7160135,0.00014893,2]
[394961678,1764211758788,-392.6770757,0.00014893,2]
[394961679,1764211758801,-174.0389378,0.00014893,2]
[394961680,1764211758810,-392.6770757,0.00014893,2]
[394961681,1764211758825,-174.0389378,0.00014893,2]
[394961682,1764211758834,-356.7583602,0.00014893,2]
[394961683,1764211759582,-209.9576533,0.00014893,2]
[394961684,1764211759613,-566.7160135,0.00014893,2]
[394961685,1764211759644,-566.7160135,0.00014893,2]
[394961686,1764211759674,-566.7160135,0.00014893,2]
[394961687,1764211759704,-566.7160135,0.00014893,2]
[394961688,1764211759734,-566.7160135,0.00014893,2]
[394961689,1764211759764,-566.7160135,0.00014893,2]
[394961690,1764211759797,-566.7160135,0.00014893,2]
[394961691,1764211759827,-566.7160135,0.00014893,2]
[394961692,1764211759921,-566.7160135,0.00014893,2]
[394961693,1764211759952,-566.7160135,0.00014893,2]
[394961694,1764211759982,-566.7160135,0.00014893,2]
[394961695,1764211760012,-560.92005427,0.00014893,2]
[394961696,1764211760042,-560.92005427,0.00014893,2]
[394961697,1764211760072,-560.92005427,0.00014893,2]
[394961698,1764211760102,-560.92005427,0.00014893,2]
[394961699,1764211760132,-560.92005427,0.00014893,2]
[394961700,1764211760163,-429.59332203,0.00014893,2]
[394961701,1764211760248,-131.32673224,0.00014893,2]
[394961702,1764211760278,-560.92005427,0.00014893,2]
[394961703,1764211760308,-560.92005427,0.00014893,2]
[394961704,1764211760337,-560.92005427,0.00014893,2]
[394961705,1764211760366,-560.92005427,0.00014893,2]
[394961706,1764211760395,-560.92005427,0.00014893,2]
[394961707,1764211760424,-560.92005427,0.00014893,2]
[394961708,1764211760453,-560.92005427,0.00014893,2]
[394961709,1764211760482,-560.92005427,0.00014893,2]
[394961710,1764211760511,-201.71561293,0.00014893,2]
[394961711,1764211760612,-359.20444134,0.00014893,2]
[394961712,1764211760752,-560.92005427,0.00014893,2]
[394961713,1764211760788,-560.92005427,0.00014893,2]
[394961714,1764211760820,-560.92005427,0.00014893,2]
[394961715,1764211760854,-560.92005427,0.00014893,2]
[394961716,1764211760886,-560.92005427,0.00014893,2]